{"text_format":"3","workbook":"xlsx","n_sheets":3,"sheets":["Resumo","Comprar um carro","Carona solidária"],"not_rendered":{"charts":1,"defined_names":33},"read":"whole","date_system":"1900"}

{"sheet":"Resumo","index":0,"n_rows":16,"n_cols":4,"rows_kept":16}
[null,"Comprar um carro vs. carona solidária"]
[null,"Média de viagens"]
[null,"Média de viagens por dia",2]
[null,"Tempo médio para cada viagem",20,"min(s)"]
[null,"Distância média para cada viagem",{"v":10,"d":"10.00"},"quilômetros"]
[null,"Quilometragem anual",{"$f":"IFERROR(AverageTripsPerDay*AveDistancePerTrip*365,\"\")","v":{"v":7300,"d":"7,300"}},"quilômetros"]
[null,"Custo do tempo"]
[null,"Taxa por hora",{"v":20,"d":"R$ 20.00"}]
[null,"Resumo anual de custos"]
[" ","Coluna1","Comprar um carro","Carona solidária"]
[null,"Custo de compra",{"$f":"CustoAnualDeCompra","v":{"v":7187.314844765674,"d":"R$ 7,187.31"}},"-"]
[null,"Custos de uso do carro",{"$f":"CustoAnualDeUso","v":{"v":2990,"d":"R$ 2,990.00"}},"-"]
[null,"Custos de combustível",{"$f":"CustoAnualDeCombustível","v":{"v":617.6923076923076,"d":"R$ 617.69"}},"-"]
[null,"Custo de tarifa","-",{"$f":"CustoAnualDeTarifa","v":{"v":12340.65,"d":"R$ 12,340.65"}}]
[null,"Custo do tempo",{"$f":"AnnualCostOfTime_BuyCar","v":{"v":7300,"d":"R$ 7,300.00"}},{"$f":"AnnualCostOfTime_Ridesharing","v":{"v":2190,"d":"R$ 2,190.00"}}]
[null,"Custo anual total",{"$f":"SUBTOTAL(109,Tabela7[Comprar um carro])","v":{"v":18095.007152457983,"d":"R$ 18,095.01"}},{"$f":"SUBTOTAL(109,Tabela7[Carona solidária])","v":{"v":14530.65,"d":"R$ 14,530.65"}}]

{"sheet":"Comprar um carro","index":1,"n_rows":28,"n_cols":4,"rows_kept":28}
[null,"Comprar um carro"]
[null,"Custo de compra"]
[]
[null,"Preço do carro",{"v":30000,"d":"R$ 30,000.00"}]
[null,"Imposto sobre vendas",{"v":0.0575,"d":"R$ 0.06"}]
[null,"Taxas de compra",{"v":220,"d":"R$ 220.00"}]
[null,"Pagamento de entrada",{"v":3000,"d":"R$ 3,000.00"},"meses"]
[null,"Termo do empréstimo",{"v":60,"d":"R$ 60.00"}]
[null,"Taxa de juros",{"v":0.045,"d":"R$ 0.05"}]
[null,"Custo anual de compra",{"$f":"IFERROR(-PMT(TaxaDeJuros,TermoDoEmpréstimo/12,PreçoDoCarro*(1+ImpostoSobreVendas)-PagamentoDeEntrada)+(TaxasDeCompra+PagamentoDeEntrada)/(TermoDoEmpréstimo/12),\"\")","v":{"v":7187.314844765674,"d":"R$ 7,187.31"}}]
[null,{"$f":"IF(CustoAnualDeCompra=\"\",\"\",\"Para termo de empréstimo de \" & TEXT(TermoDoEmpréstimo/12,\"0,0\") & \" anos\")","v":"Para termo de empréstimo de 5,0 anos"}]
[null,"Custos de uso do carro"]
[null,"Manutenção e reparos",{"v":1000,"d":"R$ 1,000.00"},"por ano"]
[null,"Seguro",{"v":815,"d":"R$ 815.00"},"por ano"]
[null,"Inscrição e impostos",{"v":75,"d":"R$ 75.00"},"por ano"]
[null,"Estacionamento",{"v":500,"d":"R$ 500.00"},"por ano"]
[null,"Imposto sobre a propriedade na garagem",{"v":500,"d":"R$ 500.00"},"por ano"]
[null,"Outras despesas de garagem",{"v":100,"d":"R$ 100.00"},"por ano"]
[null,"Custo anual de uso",{"$f":"SUBTOTAL(109,Tabela3[Coluna3])","v":{"v":2990,"d":"R$ 2,990.00"}}]
[null,"Custos de combustível"]
[null,"Custo de combustível",{"v":3.3,"d":"R$ 3.30"},"por litro"]
[null,"Eficiência do combustível",39,"quilômetros/L"]
[null,"Custo anual de combustível",{"$f":"IFERROR(TotalMileage/EficiênciaDoCombustível*CustoDeCombustível,\"\")","v":{"v":617.6923076923076,"d":"R$ 617.69"}}]
[null,{"$f":"IF(CustoAnualDeCombustível=\"\",\"\",\"Baseado em uma milhagem anual total de \" & TEXT(TotalMileage,\"#.##0\") )","v":"Baseado em uma milhagem anual total de 7.300"}]
[null,"Custo do tempo"]
[null,"Tempo médio de estacionamento",10,"min"]
[null,"Custo anual do tempo",{"$f":"IFERROR((AveTimePerTrip+AveParkingTime)*AverageTripsPerDay/60*TaxaPorHora*365,\"\")","v":{"v":7300,"d":"R$ 7,300.00"}}]
[null,{"$f":"IF(AnnualCostOfTime_BuyCar=\"\",\"\",\"Baseado em \" & AverageTripsPerDay & \" viagens por dia, \" & AveTimePerTrip + AveParkingTime & \" min cada viagem, taxa de \" & TEXT(TaxaPorHora,\"R$  #.##0,00\") & \" por hora\")","v":"Baseado em 2 viagens por dia, 30 min cada viagem, taxa de R$  20,00 por hora"}]

{"sheet":"Carona solidária","index":2,"n_rows":14,"n_cols":4,"rows_kept":14}
[null,"Carona solidária"]
[null,"Tarifa de carona solidária"]
[null,"Tarifa de base",{"v":2.3,"d":"R$ 2.30"},"por viagem"]
[null,"Tarifa de distância",{"v":1,"d":"R$ 1.00"},"por quilômetro"]
[null,"Tarifa de tempo",{"v":0.12,"d":"R$ 0.12"},"por minuto"]
[null,"Multiplicador de pico médio",{"v":2.5,"d":"2.50"}]
[null,"Porcentagem de viagens durante o pico",{"v":0.1,"d":"10%"}]
[null,"Custo anual de tarifa",{"$f":"IFERROR((TarifaDeBase+TarifaDeDistância*AveDistancePerTrip+TarifaDeTempo*AveTimePerTrip)*AverageTripsPerDay*365*((1-PercentRideDuringSurge)+AveSurgeMultiplier*PercentRideDuringSurge),\"\")","v":{"v":12340.65,"d":"R$ 12,340.65"}}]
[null,{"$f":"IF(CustoAnualDeTarifa=\"\",\"\",\"Baseado em \" & AverageTripsPerDay & \" viagens por dia,viagem de \" & AveTimePerTrip & \" min e \" & AveDistancePerTrip & \" milhas\")","v":"Baseado em 2 viagens por dia,viagem de 20 min e 10 milhas"}]
[null,"Custo do tempo"]
[null,"Tempo médio de espera por viagem",{"v":5,"d":"R$ 5.00"},"min"]
[null,"Tempo produtivo durante a viagem",{"v":0.8,"d":"R$ 0.80"}]
[null,"Custo anual do tempo",{"$f":"IFERROR((AveWaitTime+AveTimePerTrip*(1-ProductivePercent))*AverageTripsPerDay/60*TaxaPorHora*365,\"\")","v":{"v":2190,"d":"R$ 2,190.00"}}]
[null,{"$f":"IF(AnnualCostOfTime_Ridesharing=\"\",\"\",\"Baseado em \" & AverageTripsPerDay & \" viagens por dia, \" & AveTimePerTrip & \" min cada viagem,taxa de \" & TEXT(TaxaPorHora,\"R$ #.##0,00\") & \" por hora\")","v":"Baseado em 2 viagens por dia, 20 min cada viagem,taxa de R$ 20,00 por hora"}]